Workbook

Sheet Ürün Satış Raporu
B1: Ürün Satış Raporu
B20: Ürünler

Sheet Geçmiş Veriler
B1: Geçmiş Ürün Fiyat Listesi ve Satışlar
B3: Ürün No | C3: Ürün Adı | D3: Fiyat Tarihi | E3: Birim Başına Perakende Fiyat | F3: Birim Başına Toptan Fiyat* | G3: Satılan Birim (perakende) | H3: Satılan Birim (toplam) | I3: Toplam Satış (#) | J3: Toplam Satış (ABD Doları)
B4: 5 | C4: =IFERROR(IF(tblSatışlar[[#This Row],[Ürün No]]<>"",VLOOKUP(tblSatışlar[Ürün No],tblÜrünler[[Ürün No]:[Ad]],2,FALSE),""),"Bilinmeyen Ürün No") -> Şort | D4: 2012-01-01 | E4: 20 | F4: 20 TL | G4: 629 | H4: 1,254 | I4: =tblSatışlar[[#This Row],[Satılan Birim (perakende)]]+tblSatışlar[[#This Row],[Satılan Birim (toplam)]] -> 1,883 | J4: =tblSatışlar[[#This Row],[Satılan Birim (perakende)]]*tblSatışlar[[#This Row],[Birim Başına Perakende Fiyat]]+tblSatışlar[[#This Row],[Satılan Birim (toplam)]]*tblSatışlar[[#This Row],[Birim Başına Toptan Fiyat*]] -> 37,660 TL
B5: 1 | C5: =IFERROR(IF(tblSatışlar[[#This Row],[Ürün No]]<>"",VLOOKUP(tblSatışlar[Ürün No],tblÜrünler[[Ürün No]:[Ad]],2,FALSE),""),"Bilinmeyen Ürün No") -> Gömlek | D5: 2012-01-01 | E5: 88 | F5: 54 TL | G5: 734 | H5: 1,427 | I5: =tblSatışlar[[#This Row],[Satılan Birim (perakende)]]+tblSatışlar[[#This Row],[Satılan Birim (toplam)]] -> 2,161 | J5: =tblSatışlar[[#This Row],[Satılan Birim (perakende)]]*tblSatışlar[[#This Row],[Birim Başına Perakende Fiyat]]+tblSatışlar[[#This Row],[Satılan Birim (toplam)]]*tblSatışlar[[#This Row],[Birim Başına Toptan Fiyat*]] -> 141,650 TL
B6: 2 | C6: =IFERROR(IF(tblSatışlar[[#This Row],[Ürün No]]<>"",VLOOKUP(tblSatışlar[Ürün No],tblÜrünler[[Ürün No]:[Ad]],2,FALSE),""),"Bilinmeyen Ürün No") -> Sandalet | D6: 2012-01-01 | E6: 70 | F6: 44 TL | G6: 744 | H6: 1,043 | I6: =tblSatışlar[[#This Row],[Satılan Birim (perakende)]]+tblSatışlar[[#This Row],[Satılan Birim (toplam)]] -> 1,787 | J6: =tblSatışlar[[#This Row],[Satılan Birim (perakende)]]*tblSatışlar[[#This Row],[Birim Başına Perakende Fiyat]]+tblSatışlar[[#This Row],[Satılan Birim (toplam)]]*tblSatışlar[[#This Row],[Birim Başına Toptan Fiyat*]] -> 97,972 TL
B7: 3 | C7: =IFERROR(IF(tblSatışlar[[#This Row],[Ürün No]]<>"",VLOOKUP(tblSatışlar[Ürün No],tblÜrünler[[Ürün No]:[Ad]],2,FALSE),""),"Bilinmeyen Ürün No") -> Şemsiye | D7: 2012-01-01 | E7: 63 | F7: 44 TL | G7: 681 | H7: 1,523 | I7: =tblSatışlar[[#This Row],[Satılan Birim (perakende)]]+tblSatışlar[[#This Row],[Satılan Birim (toplam)]] -> 2,204 | J7: =tblSatışlar[[#This Row],[Satılan Birim (perakende)]]*tblSatışlar[[#This Row],[Birim Başına Perakende Fiyat]]+tblSatışlar[[#This Row],[Satılan Birim (toplam)]]*tblSatışlar[[#This Row],[Birim Başına Toptan Fiyat*]] -> 109,915 TL
B8: 4 | C8: =IFERROR(IF(tblSatışlar[[#This Row],[Ürün No]]<>"",VLOOKUP(tblSatışlar[Ürün No],tblÜrünler[[Ürün No]:[Ad]],2,FALSE),""),"Bilinmeyen Ürün No") -> Su şişesi | D8: 2012-01-01 | E8: 35 | F8: 27 TL | G8: 602 | H8: 1,822 | I8: =tblSatışlar[[#This Row],[Satılan Birim (perakende)]]+tblSatışlar[[#This Row],[Satılan Birim (toplam)]] -> 2,424 | J8: =tblSatışlar[[#This Row],[Satılan Birim (perakende)]]*tblSatışlar[[#This Row],[Birim Başına Perakende Fiyat]]+tblSatışlar[[#This Row],[Satılan Birim (toplam)]]*tblSatışlar[[#This Row],[Birim Başına Toptan Fiyat*]] -> 70,264 TL
B9: 1 | C9: =IFERROR(IF(tblSatışlar[[#This Row],[Ürün No]]<>"",VLOOKUP(tblSatışlar[Ürün No],tblÜrünler[[Ürün No]:[Ad]],2,FALSE),""),"Bilinmeyen Ürün No") -> Gömlek | D9: 2012-02-01 | E9: 55 | F9: 44 TL | G9: 678 | H9: 1,515 | I9: =tblSatışlar[[#This Row],[Satılan Birim (perakende)]]+tblSatışlar[[#This Row],[Satılan Birim (toplam)]] -> 2,193 | J9: =tblSatışlar[[#This Row],[Satılan Birim (perakende)]]*tblSatışlar[[#This Row],[Birim Başına Perakende Fiyat]]+tblSatışlar[[#This Row],[Satılan Birim (toplam)]]*tblSatışlar[[#This Row],[Birim Başına Toptan Fiyat*]] -> 103,950 TL
B10: 2 | C10: =IFERROR(IF(tblSatışlar[[#This Row],[Ürün No]]<>"",VLOOKUP(tblSatışlar[Ürün No],tblÜrünler[[Ürün No]:[Ad]],2,FALSE),""),"Bilinmeyen Ürün No") -> Sandalet | D10: 2012-02-01 | E10: 83 | F10: 54 TL | G10: 753 | H10: 1,005 | I10: =tblSatışlar[[#This Row],[Satılan Birim (perakende)]]+tblSatışlar[[#This Row],[Satılan Birim (toplam)]] -> 1,758 | J10: =tblSatışlar[[#This Row],[Satılan Birim (perakende)]]*tblSatışlar[[#This Row],[Birim Başına Perakende Fiyat]]+tblSatışlar[[#This Row],[Satılan Birim (toplam)]]*tblSatışlar[[#This Row],[Birim Başına Toptan Fiyat*]] -> 116,769 TL
B11: 3 | C11: =IFERROR(IF(tblSatışlar[[#This Row],[Ürün No]]<>"",VLOOKUP(tblSatışlar[Ürün No],tblÜrünler[[Ürün No]:[Ad]],2,FALSE),""),"Bilinmeyen Ürün No") -> Şemsiye | D11: 2012-02-01 | E11: 34 | F11: 34 TL | G11: 986 | H11: 1,069 | I11: =tblSatışlar[[#This Row],[Satılan Birim (perakende)]]+tblSatışlar[[#This Row],[Satılan Birim (toplam)]] -> 2,055 | J11: =tblSatışlar[[#This Row],[Satılan Birim (perakende)]]*tblSatışlar[[#This Row],[Birim Başına Perakende Fiyat]]+tblSatışlar[[#This Row],[Satılan Birim (toplam)]]*tblSatışlar[[#This Row],[Birim Başına Toptan Fiyat*]] -> 69,870 TL
B12: 4 | C12: =IFERROR(IF(tblSatışlar[[#This Row],[Ürün No]]<>"",VLOOKUP(tblSatışlar[Ürün No],tblÜrünler[[Ürün No]:[Ad]],2,FALSE),""),"Bilinmeyen Ürün No") -> Su şişesi | D12: 2012-02-01 | E12: 35 | F12: 25 TL | G12: 848 | H12: 1,211 | I12: =tblSatışlar[[#This Row],[Satılan Birim (perakende)]]+tblSatışlar[[#This Row],[Satılan Birim (toplam)]] -> 2,059 | J12: =tblSatışlar[[#This Row],[Satılan Birim (perakende)]]*tblSatışlar[[#This Row],[Birim Başına Perakende Fiyat]]+tblSatışlar[[#This Row],[Satılan Birim (toplam)]]*tblSatışlar[[#This Row],[Birim Başına Toptan Fiyat*]] -> 59,955 TL
B13: 5 | C13: =IFERROR(IF(tblSatışlar[[#This Row],[Ürün No]]<>"",VLOOKUP(tblSatışlar[Ürün No],tblÜrünler[[Ürün No]:[Ad]],2,FALSE),""),"Bilinmeyen Ürün No") -> Şort | D13: 2012-02-01 | E13: 41 | F13: 38 TL | G13: 980 | H13: 1,330 | I13: =tblSatışlar[[#This Row],[Satılan Birim (perakende)]]+tblSatışlar[[#This Row],[Satılan Birim (toplam)]] -> 2,310 | J13: =tblSatışlar[[#This Row],[Satılan Birim (perakende)]]*tblSatışlar[[#This Row],[Birim Başına Perakende Fiyat]]+tblSatışlar[[#This Row],[Satılan Birim (toplam)]]*tblSatışlar[[#This Row],[Birim Başına Toptan Fiyat*]] -> 90,720 TL
B14: 1 | C14: =IFERROR(IF(tblSatışlar[[#This Row],[Ürün No]]<>"",VLOOKUP(tblSatışlar[Ürün No],tblÜrünler[[Ürün No]:[Ad]],2,FALSE),""),"Bilinmeyen Ürün No") -> Gömlek | D14: 2012-02-29 | E14: 27 | F14: 18 TL | G14: 533 | H14: 1,936 | I14: =tblSatışlar[[#This Row],[Satılan Birim (perakende)]]+tblSatışlar[[#This Row],[Satılan Birim (toplam)]] -> 2,469 | J14: =tblSatışlar[[#This Row],[Satılan Birim (perakende)]]*tblSatışlar[[#This Row],[Birim Başına Perakende Fiyat]]+tblSatışlar[[#This Row],[Satılan Birim (toplam)]]*tblSatışlar[[#This Row],[Birim Başına Toptan Fiyat*]] -> 49,239 TL
B15: 2 | C15: =IFERROR(IF(tblSatışlar[[#This Row],[Ürün No]]<>"",VLOOKUP(tblSatışlar[Ürün No],tblÜrünler[[Ürün No]:[Ad]],2,FALSE),""),"Bilinmeyen Ürün No") -> Sandalet | D15: 2012-02-29 | E15: 38 | F15: 28 TL | G15: 952 | H15: 1,512 | I15: =tblSatışlar[[#This Row],[Satılan Birim (perakende)]]+tblSatışlar[[#This Row],[Satılan Birim (toplam)]] -> 2,464 | J15: =tblSatışlar[[#This Row],[Satılan Birim (perakende)]]*tblSatışlar[[#This Row],[Birim Başına Perakende Fiyat]]+tblSatışlar[[#This Row],[Satılan Birim (toplam)]]*tblSatışlar[[#This Row],[Birim Başına Toptan Fiyat*]] -> 78,512 TL
B16: 3 | C16: =IFERROR(IF(tblSatışlar[[#This Row],[Ürün No]]<>"",VLOOKUP(tblSatışlar[Ürün No],tblÜrünler[[Ürün No]:[Ad]],2,FALSE),""),"Bilinmeyen Ürün No") -> Şemsiye | D16: 2012-02-29 | E16: 92 | F16: 92 TL | G16: 956 | H16: 1,266 | I16: =tblSatışlar[[#This Row],[Satılan Birim (perakende)]]+tblSatışlar[[#This Row],[Satılan Birim (toplam)]] -> 2,222 | J16: =tblSatışlar[[#This Row],[Satılan Birim (perakende)]]*tblSatışlar[[#This Row],[Birim Başına Perakende Fiyat]]+tblSatışlar[[#This Row],[Satılan Birim (toplam)]]*tblSatışlar[[#This Row],[Birim Başına Toptan Fiyat*]] -> 204,424 TL
B17: 4 | C17: =IFERROR(IF(tblSatışlar[[#This Row],[Ürün No]]<>"",VLOOKUP(tblSatışlar[Ürün No],tblÜrünler[[Ürün No]:[Ad]],2,FALSE),""),"Bilinmeyen Ürün No") -> Su şişesi | D17: 2012-02-29 | E17: 43 | F17: 36 TL | G17: 952 | H17: 1,390 | I17: =tblSatışlar[[#This Row],[Satılan Birim (perakende)]]+tblSatışlar[[#This Row],[Satılan Birim (toplam)]] -> 2,342 | J17: =tblSatışlar[[#This Row],[Satılan Birim (perakende)]]*tblSatışlar[[#This Row],[Birim Başına Perakende Fiyat]]+tblSatışlar[[#This Row],[Satılan Birim (toplam)]]*tblSatışlar[[#This Row],[Birim Başına Toptan Fiyat*]] -> 90,976 TL
B18: 5 | C18: =IFERROR(IF(tblSatışlar[[#This Row],[Ürün No]]<>"",VLOOKUP(tblSatışlar[Ürün No],tblÜrünler[[Ürün No]:[Ad]],2,FALSE),""),"Bilinmeyen Ürün No") -> Şort | D18: 2012-02-29 | E18: 98 | F18: 73 TL | G18: 530 | H18: 1,452 | I18: =tblSatışlar[[#This Row],[Satılan Birim (perakende)]]+tblSatışlar[[#This Row],[Satılan Birim (toplam)]] -> 1,982 | J18: =tblSatışlar[[#This Row],[Satılan Birim (perakende)]]*tblSatışlar[[#This Row],[Birim Başına Perakende Fiyat]]+tblSatışlar[[#This Row],[Satılan Birim (toplam)]]*tblSatışlar[[#This Row],[Birim Başına Toptan Fiyat*]] -> 157,936 TL
B19: 1 | C19: =IFERROR(IF(tblSatışlar[[#This Row],[Ürün No]]<>"",VLOOKUP(tblSatışlar[Ürün No],tblÜrünler[[Ürün No]:[Ad]],2,FALSE),""),"Bilinmeyen Ürün No") -> Gömlek | D19: 2012-03-31 | E19: 38 | F19: 28 TL | G19: 973 | H19: 1,415 | I19: =tblSatışlar[[#This Row],[Satılan Birim (perakende)]]+tblSatışlar[[#This Row],[Satılan Birim (toplam)]] -> 2,388 | J19: =tblSatışlar[[#This Row],[Satılan Birim (perakende)]]*tblSatışlar[[#This Row],[Birim Başına Perakende Fiyat]]+tblSatışlar[[#This Row],[Satılan Birim (toplam)]]*tblSatışlar[[#This Row],[Birim Başına Toptan Fiyat*]] -> 76,594 TL
B20: 2 | C20: =IFERROR(IF(tblSatışlar[[#This Row],[Ürün No]]<>"",VLOOKUP(tblSatışlar[Ürün No],tblÜrünler[[Ürün No]:[Ad]],2,FALSE),""),"Bilinmeyen Ürün No") -> Sandalet | D20: 2012-03-31 | E20: 50 | F20: 36 TL | G20: 672 | H20: 1,105 | I20: =tblSatışlar[[#This Row],[Satılan Birim (perakende)]]+tblSatışlar[[#This Row],[Satılan Birim (toplam)]] -> 1,777 | J20: =tblSatışlar[[#This Row],[Satılan Birim (perakende)]]*tblSatışlar[[#This Row],[Birim Başına Perakende Fiyat]]+tblSatışlar[[#This Row],[Satılan Birim (toplam)]]*tblSatışlar[[#This Row],[Birim Başına Toptan Fiyat*]] -> 73,380 TL
B21: 3 | C21: =IFERROR(IF(tblSatışlar[[#This Row],[Ürün No]]<>"",VLOOKUP(tblSatışlar[Ürün No],tblÜrünler[[Ürün No]:[Ad]],2,FALSE),""),"Bilinmeyen Ürün No") -> Şemsiye | D21: 2012-03-31 | E21: 24 | F21: 23 TL | G21: 769 | H21: 1,629 | I21: =tblSatışlar[[#This Row],[Satılan Birim (perakende)]]+tblSatışlar[[#This Row],[Satılan Birim (toplam)]] -> 2,398 | J21: =tblSatışlar[[#This Row],[Satılan Birim (perakende)]]*tblSatışlar[[#This Row],[Birim Başına Perakende Fiyat]]+tblSatışlar[[#This Row],[Satılan Birim (toplam)]]*tblSatışlar[[#This Row],[Birim Başına Toptan Fiyat*]] -> 55,923 TL
B22: 4 | C22: =IFERROR(IF(tblSatışlar[[#This Row],[Ürün No]]<>"",VLOOKUP(tblSatışlar[Ürün No],tblÜrünler[[Ürün No]:[Ad]],2,FALSE),""),"Bilinmeyen Ürün No") -> Su şişesi | D22: 2012-03-31 | E22: 72 | F22: 57 TL | G22: 985 | H22: 1,848 | I22: =tblSatışlar[[#This Row],[Satılan Birim (perakende)]]+tblSatışlar[[#This Row],[Satılan Birim (toplam)]] -> 2,833 | J22: =tblSatışlar[[#This Row],[Satılan Birim (perakende)]]*tblSatışlar[[#This Row],[Birim Başına Perakende Fiyat]]+tblSatışlar[[#This Row],[Satılan Birim (toplam)]]*tblSatışlar[[#This Row],[Birim Başına Toptan Fiyat*]] -> 176,256 TL
B23: 5 | C23: =IFERROR(IF(tblSatışlar[[#This Row],[Ürün No]]<>"",VLOOKUP(tblSatışlar[Ürün No],tblÜrünler[[Ürün No]:[Ad]],2,FALSE),""),"Bilinmeyen Ürün No") -> Şort | D23: 2012-03-31 | E23: 85 | F23: 43 TL | G23: 721 | H23: 1,426 | I23: =tblSatışlar[[#This Row],[Satılan Birim (perakende)]]+tblSatışlar[[#This Row],[Satılan Birim (toplam)]] -> 2,147 | J23: =tblSatışlar[[#This Row],[Satılan Birim (perakende)]]*tblSatışlar[[#This Row],[Birim Başına Perakende Fiyat]]+tblSatışlar[[#This Row],[Satılan Birim (toplam)]]*tblSatışlar[[#This Row],[Birim Başına Toptan Fiyat*]] -> 122,603 TL
B24: 1 | C24: =IFERROR(IF(tblSatışlar[[#This Row],[Ürün No]]<>"",VLOOKUP(tblSatışlar[Ürün No],tblÜrünler[[Ürün No]:[Ad]],2,FALSE),""),"Bilinmeyen Ürün No") -> Gömlek | D24: 2012-04-30 | E24: 91 | F24: 65 TL | G24: 603 | H24: 1,226 | I24: =tblSatışlar[[#This Row],[Satılan Birim (perakende)]]+tblSatışlar[[#This Row],[Satılan Birim (toplam)]] -> 1,829 | J24: =tblSatışlar[[#This Row],[Satılan Birim (perakende)]]*tblSatışlar[[#This Row],[Birim Başına Perakende Fiyat]]+tblSatışlar[[#This Row],[Satılan Birim (toplam)]]*tblSatışlar[[#This Row],[Birim Başına Toptan Fiyat*]] -> 134,563 TL
B25: 2 | C25: =IFERROR(IF(tblSatışlar[[#This Row],[Ürün No]]<>"",VLOOKUP(tblSatışlar[Ürün No],tblÜrünler[[Ürün No]:[Ad]],2,FALSE),""),"Bilinmeyen Ürün No") -> Sandalet | D25: 2012-04-30 | E25: 91 | F25: 55 TL | G25: 892 | H25: 1,823 | I25: =tblSatışlar[[#This Row],[Satılan Birim (perakende)]]+tblSatışlar[[#This Row],[Satılan Birim (toplam)]] -> 2,715 | J25: =tblSatışlar[[#This Row],[Satılan Birim (perakende)]]*tblSatışlar[[#This Row],[Birim Başına Perakende Fiyat]]+tblSatışlar[[#This Row],[Satılan Birim (toplam)]]*tblSatışlar[[#This Row],[Birim Başına Toptan Fiyat*]] -> 181,437 TL
B26: 3 | C26: =IFERROR(IF(tblSatışlar[[#This Row],[Ürün No]]<>"",VLOOKUP(tblSatışlar[Ürün No],tblÜrünler[[Ürün No]:[Ad]],2,FALSE),""),"Bilinmeyen Ürün No") -> Şemsiye | D26: 2012-04-30 | E26: 42 | F26: 42 TL | G26: 611 | H26: 1,181 | I26: =tblSatışlar[[#This Row],[Satılan Birim (perakende)]]+tblSatışlar[[#This Row],[Satılan Birim (toplam)]] -> 1,792 | J26: =tblSatışlar[[#This Row],[Satılan Birim (perakende)]]*tblSatışlar[[#This Row],[Birim Başına Perakende Fiyat]]+tblSatışlar[[#This Row],[Satılan Birim (toplam)]]*tblSatışlar[[#This Row],[Birim Başına Toptan Fiyat*]] -> 75,264 TL
B27: 4 | C27: =IFERROR(IF(tblSatışlar[[#This Row],[Ürün No]]<>"",VLOOKUP(tblSatışlar[Ürün No],tblÜrünler[[Ürün No]:[Ad]],2,FALSE),""),"Bilinmeyen Ürün No") -> Su şişesi | D27: 2012-04-30 | E27: 85 | F27: 43 TL | G27: 530 | H27: 1,039 | I27: =tblSatışlar[[#This Row],[Satılan Birim (perakende)]]+tblSatışlar[[#This Row],[Satılan Birim (toplam)]] -> 1,569 | J27: =tblSatışlar[[#This Row],[Satılan Birim (perakende)]]*tblSatışlar[[#This Row],[Birim Başına Perakende Fiyat]]+tblSatışlar[[#This Row],[Satılan Birim (toplam)]]*tblSatışlar[[#This Row],[Birim Başına Toptan Fiyat*]] -> 89,727 TL
B28: 5 | C28: =IFERROR(IF(tblSatışlar[[#This Row],[Ürün No]]<>"",VLOOKUP(tblSatışlar[Ürün No],tblÜrünler[[Ürün No]:[Ad]],2,FALSE),""),"Bilinmeyen Ürün No") -> Şort | D28: 2012-04-30 | E28: 82 | F28: 71 TL | G28: 716 | H28: 1,249 | I28: =tblSatışlar[[#This Row],[Satılan Birim (perakende)]]+tblSatışlar[[#This Row],[Satılan Birim (toplam)]] -> 1,965 | J28: =tblSatışlar[[#This Row],[Satılan Birim (perakende)]]*tblSatışlar[[#This Row],[Birim Başına Perakende Fiyat]]+tblSatışlar[[#This Row],[Satılan Birim (toplam)]]*tblSatışlar[[#This Row],[Birim Başına Toptan Fiyat*]] -> 147,391 TL
B29: 1 | C29: =IFERROR(IF(tblSatışlar[[#This Row],[Ürün No]]<>"",VLOOKUP(tblSatışlar[Ürün No],tblÜrünler[[Ürün No]:[Ad]],2,FALSE),""),"Bilinmeyen Ürün No") -> Gömlek | D29: 2012-05-14 | E29: 34 | F29: 31 TL | G29: 850 | H29: 1,548 | I29: =tblSatışlar[[#This Row],[Satılan Birim (perakende)]]+tblSatışlar[[#This Row],[Satılan Birim (toplam)]] -> 2,398 | J29: =tblSatışlar[[#This Row],[Satılan Birim (perakende)]]*tblSatışlar[[#This Row],[Birim Başına Perakende Fiyat]]+tblSatışlar[[#This Row],[Satılan Birim (toplam)]]*tblSatışlar[[#This Row],[Birim Başına Toptan Fiyat*]] -> 76,888 TL
B30: 2 | C30: =IFERROR(IF(tblSatışlar[[#This Row],[Ürün No]]<>"",VLOOKUP(tblSatışlar[Ürün No],tblÜrünler[[Ürün No]:[Ad]],2,FALSE),""),"Bilinmeyen Ürün No") -> Sandalet | D30: 2012-05-14 | E30: 64 | F30: 40 TL | G30: 876 | H30: 1,663 | I30: =tblSatışlar[[#This Row],[Satılan Birim (perakende)]]+tblSatışlar[[#This Row],[Satılan Birim (toplam)]] -> 2,539 | J30: =tblSatışlar[[#This Row],[Satılan Birim (perakende)]]*tblSatışlar[[#This Row],[Birim Başına Perakende Fiyat]]+tblSatışlar[[#This Row],[Satılan Birim (toplam)]]*tblSatışlar[[#This Row],[Birim Başına Toptan Fiyat*]] -> 122,584 TL
B31: 3 | C31: =IFERROR(IF(tblSatışlar[[#This Row],[Ürün No]]<>"",VLOOKUP(tblSatışlar[Ürün No],tblÜrünler[[Ürün No]:[Ad]],2,FALSE),""),"Bilinmeyen Ürün No") -> Şemsiye | D31: 2012-05-14 | E31: 33 | F31: 30 TL | G31: 881 | H31: 1,149 | I31: =tblSatışlar[[#This Row],[Satılan Birim (perakende)]]+tblSatışlar[[#This Row],[Satılan Birim (toplam)]] -> 2,030 | J31: =tblSatışlar[[#This Row],[Satılan Birim (perakende)]]*tblSatışlar[[#This Row],[Birim Başına Perakende Fiyat]]+tblSatışlar[[#This Row],[Satılan Birim (toplam)]]*tblSatışlar[[#This Row],[Birim Başına Toptan Fiyat*]] -> 63,543 TL
B32: 4 | C32: =IFERROR(IF(tblSatışlar[[#This Row],[Ürün No]]<>"",VLOOKUP(tblSatışlar[Ürün No],tblÜrünler[[Ürün No]:[Ad]],2,FALSE),""),"Bilinmeyen Ürün No") -> Su şişesi | D32: 2012-05-14 | E32: 29 | F32: 27 TL | G32: 802 | H32: 1,548 | I32: =tblSatışlar[[#This Row],[Satılan Birim (perakende)]]+tblSatışlar[[#This Row],[Satılan Birim (toplam)]] -> 2,350 | J32: =tblSatışlar[[#This Row],[Satılan Birim (perakende)]]*tblSatışlar[[#This Row],[Birim Başına Perakende Fiyat]]+tblSatışlar[[#This Row],[Satılan Birim (toplam)]]*tblSatışlar[[#This Row],[Birim Başına Toptan Fiyat*]] -> 65,054 TL
B33: 5 | C33: =IFERROR(IF(tblSatışlar[[#This Row],[Ürün No]]<>"",VLOOKUP(tblSatışlar[Ürün No],tblÜrünler[[Ürün No]:[Ad]],2,FALSE),""),"Bilinmeyen Ürün No") -> Şort | D33: 2013-12-11 | E33: 24 | F33: 15 TL | G33: 824 | H33: 1,994 | I33: =tblSatışlar[[#This Row],[Satılan Birim (perakende)]]+tblSatışlar[[#This Row],[Satılan Birim (toplam)]] -> 2,818 | J33: =tblSatışlar[[#This Row],[Satılan Birim (perakende)]]*tblSatışlar[[#This Row],[Birim Başına Perakende Fiyat]]+tblSatışlar[[#This Row],[Satılan Birim (toplam)]]*tblSatışlar[[#This Row],[Birim Başına Toptan Fiyat*]] -> 49,686 TL

Sheet Fiyat Listesi
B1: Ürün Fiyat Listesi
B3: Güzel İşler
B4: 23456 Çınar Sokağı
B5: Mecidiyeköy, İST 77503
B6: Telefon: 212 123 45 67
B7: Faks: 212 123 45 78
B8: www.guzel-isler.com | F8: Son güncelleştirme 15.08.2013
B10: Ürün No | C10: Ad | D10: Açıklama | E10: Birim Başına Perakende Fiyat | F10: Birim Başına Toptan Fiyat*
B11: 1 | C11: Gömlek | D11: %100 pamuk, çekmeye dayanıklı gömleklerimizle tüm yazı serin geçirin. | E11: 22 TL | F11: 15.00 TL
B12: 2 | C12: Sandalet | D12: Ağır işçilikle üretilmiş lastik sandaletlerimizden bir çift giyin ve en sıcak kumlarda bile kolaylıkla yürüyün. | E12: 10 TL | F12: 6.00 TL
B13: 3 | C13: Şemsiye | D13: Zararlı UV ışınlarını %96'ya kadar engelleyen büyük plaj şemsiyemizle güneşten korunun. | E13: 30 TL | F13: 20.00 TL
B14: 4 | C14: Su şişesi | D14: Yalıtılmış su şişemizden mükemmel sıcaklıktaki sudan içerek ferahlayın. | E14: 7 TL | F14: 5.00 TL
B15: 5 | C15: Şort | D15: Çok hızlı kuruyan naylon şortlarımızla sudan çıkıp doğrudan arabanıza binebilirsiniz. | E15: 15 TL | F15: 8.00 TL
F17: Listelenmeyen öğeler için bizi arayın.
F18: *Toptan fiyat 12 birimden fazla miktarlarda geçerlidir.

Sheet Fiyat Noktası Özeti (hidden)
B1: Fiyat Noktası PivotTable'ı
B2: Bu sayfa gizli kalmalıdır. Aşağıdaki PivotTable'da yapılacak herhangi bir değişiklik Ürün Satış Raporu'nda yanlış veriler olmasıyla sonuçlanabilir.
B3: Seçili Ürün: | C3: =IF(LEN(B5),B5,"Yok") -> Sandalet
B4: Ürün Adı | C4: Birim Başına Perakende Fiyat | D4: Toplam Satış Özeti (#)
B5: Sandalet | C5: 38 TL | D5: 2464
C6: 50 TL | D6: 1777
C7: 64 TL | D7: 2539
C8: 70 TL | D8: 1787
C9: 83 TL | D9: 1758
C10: 91 TL | D10: 2715

Sheet Satış Eğilimi Özeti (hidden)
B1: Satış Eğilimi PivotTable'ı
B2: Bu sayfa gizli kalmalıdır. Aşağıdaki PivotTable'da yapılacak herhangi bir değişiklik Ürün Satış Raporu'nda yanlış veriler olmasıyla sonuçlanabilir.
B3: Toplam Satış Özeti (#) | C3: Ürün Adı
B4: Fiyat Tarihi | C4: Sandalet
B5: Oca | C5: 1787
B6: Şub | C6: 4222
B7: Mar | C7: 1777
B8: Nis | C8: 2715
B9: May | C9: 2539
